bitfinex/quotes_SOLUSD_20241001
["timestamp","ask_amount","ask_price","bid_price","bid_amount"]
[1727756226205,6.4388,155.31,155.27,16.1006]
[1727756228206,6.4388,155.31,155.27,22.5409]
[1727756228408,6.4388,155.31,155.28,1.28783899]
[1727756228710,6.4384,155.32,155.27,23.82873746]
[1727756229613,8.04849572,155.31,155.27,16.1006]
[1727756229816,6.4387,155.31,155.27,16.1006]
[1727756230214,8.04911798,155.3,155.26,22.2455]
[1727756230420,6.4392,155.3,155.26,15.8048]
[1727756230620,6.4395,155.29,155.26,15.8048]
[1727756231228,1.60995162,155.35,155.24,22.5453]
[1727756231229,6.44,155.28,155.24,22.5453]
[1727756231933,6.4395,155.3,155.24,22.5453]
[1727756233133,23.776884,155.33,155.25,1.28806876]
[1727756233330,6.4387,155.31,155.26,6.4407]
[1727756233532,6.4386,155.32,155.27,7.72820313]
[1727756233709,6.4387,155.31,155.27,7.72820313]
[1727756233912,6.4387,155.31,155.27,6.4403]
[1727756234127,6.4383,155.32,155.27,6.4403]
[1727756234429,23.776884,155.33,155.25,1.28789261]
[1727756234637,6.4392,155.3,155.25,6.4411]
[1727756237231,23.776884,155.34,155.27,6.4403]
[1727756237440,6.4383,155.32,155.27,6.4403]
[1727756238434,6.4383,155.32,155.28,1.2878143]
[1727756238949,6.4383,155.32,155.27,6.4403]
[1727756243054,6.4374,155.35,155.3,6.4391]
[1727756243341,6.4374,155.35,155.3,7.72675459]
[1727756243532,22.64304179,155.38,155.3,1.28765459]
[1727756243737,6.4378,155.34,155.29,6.4394]
[1727756244049,6.4379,155.33,155.29,6.4394]
[1727756247334,6.4371,155.35,155.3,7.72676912]
[1727756248251,6.4371,155.35,155.31,1.28758006]
[1727756249141,6.4371,155.35,155.31,7.72618006]
[1727756249346,6.4371,155.35,155.32,1.28752213]
[1727756249846,6.4365,155.37,155.32,7.72572213]
[1727756250440,6.4365,155.37,155.32,6.4382]
[1727756250829,1.60934522,155.36,155.32,6.4382]
[1727756251051,8.04604522,155.36,155.32,6.4382]
[1727756251255,6.4367,155.36,155.32,6.4382]
[1727756259662,6.4367,155.36,155.32,22.0963]
[1727756262144,6.4367,155.36,155.33,1.28745159]
[1727756262768,6.4367,155.36,155.32,22.0963]
[1727756263066,6.4367,155.36,155.32,23.38375049]
[1727756263246,6.4367,155.36,155.32,22.0963]
[1727756265051,6.4367,155.36,155.33,1.28745038]
[1727756265366,6.4367,155.36,155.32,22.0963]
[1727756265557,6.4367,155.36,155.32,23.38375036]
[1727756266560,6.4367,155.36,155.32,22.0963]
[1727756266763,12.98914179,155.38,155.33,7.72525097]
[1727756267065,6.4361,155.38,155.33,7.72525097]
[1727756267751,6.4361,155.38,155.33,13.98195097]
[1727756267967,21.59167075,155.41,155.33,7.54415097]
[1727756268179,6.4354,155.39,155.34,6.4371]
[1727756268348,6.4354,155.39,155.35,1.28722661]
[1727756269062,6.4354,155.39,155.34,6.4371]
[1727756271455,6.4354,155.39,155.35,1.28722016]
[1727756273541,6.4354,155.39,155.35,6.437]
[1727756276574,6.4351,155.4,155.35,6.437]
[1727756276967,8.04401072,155.4,155.35,6.437]
[1727756278668,6.4351,155.4,155.36,6.4366]
[1727756278871,6.4351,155.4,155.37,1.28708136]
[1727756279373,6.4351,155.4,155.36,6.4366]
[1727756280461,6.4351,155.4,155.34,16.093]
[1727756280676,6.4351,155.4,155.35,6.4369]
[1727756280977,8.04396865,155.4,155.35,6.4369]
[1727756281782,6.4351,155.4,155.35,6.4369]
[1727756282080,8.04396934,155.4,155.35,6.4369]
[1727756283077,6.4351,155.4,155.35,6.4369]
[1727756286654,22.81184926,155.44,155.37,6.4361]
[1727756286655,6.4346,155.41,155.37,6.4361]
[1727756286874,6.4346,155.41,155.38,1.28699243]
[1727756287777,6.4346,155.41,155.37,1.28697751]
[1727756289590,6.4346,155.41,155.36,6.4366]
[1727756290786,6.4346,155.41,155.37,1.28697829]
[1727756292059,6.4346,155.41,155.36,6.4366]
[1727756292577,16.0836,155.44,155.34,16.093]
[1727756292578,6.4359,155.38,155.34,16.093]
[1727756292882,16.0836,155.44,155.34,16.093]
[1727756293086,16.0836,155.44,155.35,6.437]
[1727756293087,6.435,155.4,155.35,6.437]
[1727756294382,1.60885339,155.39,155.34,16.093]
[1727756294579,23.776884,155.41,155.31,16.0964]
[1727756294766,17.69514692,155.42,155.31,16.0964]
[1727756294767,6.4367,155.36,155.31,22.535]
[1727756297367,23.776884,155.39,155.31,16.0964]
[1727756297567,6.4371,155.35,155.31,16.0964]
[1727756298874,6.4371,155.35,155.32,1.28744914]
[1727756300594,6.4371,155.35,155.31,22.535]
[1727756301080,6.4371,155.35,155.31,16.0964]
[1727756302888,6.4371,155.35,155.32,1.28747394]
[1727756305498,6.4371,155.35,155.31,22.535]
[1727756306598,6.4371,155.35,155.32,1.28747453]
[1727756306978,6.4371,155.35,155.31,22.535]
[1727756307179,6.4371,155.35,155.32,1.28747608]
[1727756307697,6.4371,155.35,155.31,22.535]
[1727756308201,6.4375,155.34,155.28,16.0996]
[1727756308793,6.4375,155.34,155.29,7.72680985]
[1727756309392,6.437,155.35,155.29,1.28760985]
[1727756309692,6.437,155.35,155.31,6.4386]
[1727756309878,6.437,155.35,155.32,1.28747419]
[1727756310081,2.2981,155.37,155.32,1.28747419]
[1727756310291,8.7343,155.37,155.33,6.4378]
[1727756310607,6.4363,155.37,155.3,16.0971]
[1727756310772,6.4363,155.37,155.32,6.4382]
[1727756311471,6.4359,155.38,155.33,6.4378]
[1727756312500,8.04537051,155.37,155.32,6.4382]
[1727756312799,6.4362,155.37,155.32,6.4382]
[1727756312979,1.60918077,155.39,155.3,16.0971]
[1727756313175,6.4358,155.38,155.33,6.4377]
[1727756313380,6.4358,155.38,155.31,1.28733441]
[1727756313381,6.4355,155.39,155.34,1.28728626]
[1727756313599,6.4355,155.39,155.35,6.437]
[1727756313795,6.5343,155.4,155.36,1.28718496]
[1727756313796,12.9693,155.4,155.36,1.28718496]
[1727756314185,12.9693,155.4,155.35,6.437]
[1727756316591,12.9693,155.4,155.36,1.28715515]
[1727756317087,12.9693,155.4,155.35,6.437]
[1727756318479,6.4354,155.39,155.35,6.437]
[1727756318700,1.60894678,155.39,155.32,16.0948]
[1727756318901,6.436,155.38,155.33,6.4378]
[1727756320207,6.436,155.38,155.34,1.28726496]
[1727756320383,6.436,155.38,155.33,6.4378]
[1727756320990,6.5343,155.4,155.32,16.0948]
[1727756321214,6.435,155.4,155.35,6.4367]
[1727756321385,6.435,155.4,155.36,1.28709303]
[1727756322098,6.4354,155.39,155.34,16.093]
[1727756322298,6.4354,155.39,155.34,22.5304]
[1727756322491,1.60898458,155.38,155.34,22.5304]
[1727756322684,3.90718639,155.41,155.34,16.093]
[1727756322891,6.4362,155.37,155.32,6.4379]
[1727756330209,6.4362,155.37,155.33,1.28738352]
[1727756330897,6.4359,155.38,155.33,7.72508352]
[1727756331297,6.4359,155.38,155.34,1.28732234]
[1727756331981,6.4354,155.39,155.34,7.72462234]
[1727756332407,6.435,155.4,155.33,44.98267823]
[1727756332617,6.435,155.4,155.36,6.4365]
[1727756332780,6.4349,155.41,155.37,1.28712698]
[1727756333787,16.0847,155.43,155.36,6.4365]
[1727756334001,6.435,155.4,155.36,6.4365]
[1727756334491,6.435,155.4,155.37,1.28712373]
[1727756334713,14.33444824,155.44,155.37,1.28712373]
[1727756335008,6.4346,155.41,155.36,6.4365]
[1727756335393,6.4346,155.41,155.35,16.0921]
[1727756335596,6.4342,155.42,155.37,6.4362]
[1727756335790,6.4342,155.42,155.38,1.28696237]
[1727756336994,6.4342,155.42,155.37,6.4362]
[1727756337511,6.4346,155.41,155.37,6.4362]
[1727756338514,8.04419313,155.4,155.35,16.0921]
[1727756338693,6.4353,155.4,155.35,16.0921]
[1727756339993,6.4353,155.4,155.36,1.28712545]
[1727756341101,8.04450456,155.39,155.35,16.0921]
[1727756341412,6.4356,155.39,155.35,16.0921]
[1727756342302,1.6090108,155.43,155.33,16.1157]
[1727756342503,6.4362,155.37,155.33,22.5535]
[1727756342816,39.862884,155.42,155.34,7.72472281]
[1727756343016,6.435,155.4,155.35,6.4368]
[1727756343219,6.435,155.4,155.36,1.28714959]
[1727756346199,6.502,155.44,155.36,1.28714959]
[1727756346415,6.4341,155.42,155.37,6.4358]
[1727756346731,6.4341,155.42,155.38,1.28693718]
[1727756348904,21.983391,155.45,155.36,16.0907]
[1727756349225,6.4347,155.41,155.36,22.5272]
[1727756349723,6.4354,155.39,155.34,6.4374]
[1727756350209,6.435,155.4,155.35,6.4367]
[1727756350408,6.435,155.4,155.36,1.28707661]
[1727756350614,6.435,155.4,155.36,7.72367661]
[1727756350821,6.4346,155.41,155.36,7.72367661]
[1727756351429,6.4346,155.41,155.37,1.28703782]
[1727756351927,6.4346,155.41,155.36,6.4366]
[1727756352124,1.60884483,155.4,155.34,6.4371]
[1727756352326,23.776884,155.42,155.34,6.4371]
[1727756352516,23.776884,155.44,155.34,6.4371]
[1727756352517,6.4357,155.39,155.34,6.4371]
[1727756357508,6.4357,155.39,155.35,1.28721844]
[1727756358434,28.70052621,155.45,155.36,1.28721789]
[1727756358633,6.4337,155.43,155.38,22.2475]
[1727756358926,1.60862591,155.44,155.38,22.2475]
[1727756359104,6.4342,155.42,155.38,22.2475]
[1727756359307,6.4342,155.42,155.38,15.8118]
[1727756362731,6.4338,155.43,155.39,1.28696154]
[1727756362931,6.4338,155.43,155.39,7.72226154]
[1727756363137,6.4338,155.43,155.38,22.2475]
[1727756367542,6.4338,155.43,155.39,1.28687855]
[1727756368041,6.4338,155.43,155.38,22.2475]
[1727756368224,6.4338,155.43,155.39,1.28687391]
[1727756369518,6.4338,155.43,155.38,22.2475]
[1727756369715,12.333591,155.45,155.4,6.4349]
[1727756369931,6.4329,155.45,155.41,1.28675457]
[1727756370239,11.39357525,155.5,155.41,1.28675457]
[1727756370240,6.31689633,155.49,155.41,1.28675457]
[1727756370444,6.31689633,155.49,155.43,6.4337]
[1727756370445,6.4317,155.48,155.43,6.4337]
[1727756370643,6.4317,155.48,155.44,1.28647188]
[1727756371518,6.31689633,155.49,155.44,7.71957188]
[1727756371519,12.74819633,155.49,155.44,7.71957188]
[1727756371737,6.4313,155.49,155.44,7.71957188]
[1727756372933,6.4313,155.49,155.44,6.4331]
[1727756373515,13.05137642,155.53,155.42,22.7714]
[1727756373733,13.05137642,155.53,155.45,29.03007823]
[1727756374015,6.73448009,155.53,155.47,28.85287823]
[1727756374223,7.08683986,155.58,155.48,7.6888979]
[1727756375025,7.08683986,155.58,155.5,16.4798]
[1727756375232,6.4287,155.56,155.51,1.28587825]
[1727756375421,6.4287,155.56,155.5,16.4798]
[1727756375621,6.4287,155.56,155.5,22.9106]
[1727756377927,6.4289,155.55,155.5,16.4798]
[1727756378320,6.73198525,155.59,155.52,6.4299]
[1727756378538,6.4271,155.59,155.53,6.4294]
[1727756379245,6.4277,155.58,155.52,6.43]
[1727756380225,6.4279,155.57,155.52,6.43]
[1727756380420,6.4279,155.57,155.51,6.4304]
[1727756380627,6.4284,155.56,155.51,6.4304]
[1727756383232,6.4279,155.57,155.5,32.5566]
[1727756383436,6.4279,155.57,155.52,6.4299]
[1727756387051,6.4279,155.57,155.53,1.28561258]
[1727756388034,6.4279,155.57,155.52,6.4299]
[1727756389949,6.4279,155.57,155.53,6.4079]
[1727756392233,6.4279,155.57,155.54,1.28553176]
[1727756392461,6.4279,155.57,155.53,6.4079]
[1727756393756,6.4275,155.59,155.55,16.4067]
[1727756393931,6.4275,155.59,155.56,1.28547154]
[1727756394961,0.8303797,155.61,155.56,1.28547154]
[1727756395172,6.4277,155.58,155.56,1.28547154]
[1727756395462,0.8303797,155.61,155.57,1.28544825]
[1727756395641,6.4276,155.58,155.55,16.4067]
[1727756396132,6.4276,155.58,155.56,1.28545725]
[1727756397554,6.4276,155.58,155.55,16.4067]
[1727756397855,6.4271,155.59,155.56,1.28545386]
[1727756399245,6.4271,155.59,155.55,16.4067]
[1727756399633,6.4271,155.59,155.56,1.28539774]
[1727756400042,6.4271,155.59,155.55,16.4067]
[1727756400238,6.4271,155.59,155.56,1.2853984]
[1727756401460,6.4271,155.59,155.55,16.4067]
[1727756402666,6.4276,155.58,155.55,16.4067]
[1727756403441,0.8303797,155.61,155.55,16.4067]
[1727756403673,6.428,155.57,155.55,16.4067]
[1727756404651,6.4283,155.56,155.55,16.4067]
[1727756414579,23.776884,155.59,155.52,15.519]
[1727756414779,1.60730286,155.58,155.52,15.519]
[1727756415759,23.776884,155.57,155.52,15.519]
[1727756415958,6.4296,155.53,155.52,15.519]
[1727756416862,6.4296,155.53,155.49,6.5086]
[1727756417179,1.60743274,155.58,155.48,15.2711]
[1727756417180,6.4305,155.51,155.48,15.2711]
[1727756417479,16.071,155.56,155.48,15.2711]
[1727756417689,6.43,155.52,155.49,1.28604347]
[1727756418059,16.071,155.56,155.48,15.2711]
[1727756418266,6.4305,155.51,155.48,15.2711]
[1727756419866,6.43,155.52,155.49,1.28612463]
[1727756420283,6.4296,155.53,155.5,1.286124]
[1727756420663,6.4296,155.53,155.48,15.2711]
[1727756420870,6.4304,155.52,155.48,15.2711]
[1727756421162,6.4304,155.52,155.48,16.55721102]
[1727756423889,6.4304,155.52,155.48,15.2711]
[1727756424478,6.4304,155.52,155.49,1.28604463]
[1727756425890,6.4304,155.52,155.48,15.2711]
[1727756426077,1.60753303,155.55,155.48,15.2711]
[1727756426279,39.850784,155.54,155.44,16.2185]
[1727756426490,6.4321,155.47,155.44,16.2185]
[1727756426662,6.4316,155.49,155.44,16.2185]
[1727756427485,6.4316,155.49,155.45,1.28641545]
[1727756428375,6.4316,155.49,155.44,16.2185]
[1727756429570,6.4316,155.49,155.37,7.96578123]
[1727756429571,1.60802154,155.48,155.38,16.4299]
[1727756429767,1.60851893,155.47,155.38,16.4299]
[1727756429974,6.4342,155.42,155.38,16.4299]
[1727756430171,6.4348,155.41,155.38,16.4299]
[1727756430370,6.435,155.4,155.38,16.4299]
[1727756431488,6.4345,155.42,155.38,16.4299]
[1727756432983,6.4347,155.41,155.38,16.4299]
[1727756435698,6.4342,155.42,155.38,16.4299]
[1727756440274,6.4342,155.42,155.39,1.28693572]
[1727756440479,6.4342,155.42,155.38,16.4299]
[1727756444903,24.14559462,155.48,155.39,1.28692884]
[1727756445086,6.4333,155.44,155.39,7.72212884]
[1727756445279,6.4329,155.45,155.4,6.4349]
[1727756445483,6.4329,155.45,155.41,1.28673005]
[1727756445886,6.4333,155.44,155.4,6.4349]
[1727756446477,6.4333,155.44,155.39,6.4353]
[1727756451012,6.4338,155.43,155.38,16.4299]
[1727756451321,6.4346,155.41,155.38,16.4299]
[1727756452691,6.4351,155.4,155.38,16.4299]
[1727756453911,1.60867638,155.45,155.38,16.4299]
[1727756453912,6.4354,155.39,155.38,16.4299]
[1727756459424,6.4351,155.4,155.38,16.4299]
[1727756461021,6.4338,155.43,155.38,16.4299]
[1727756461199,6.73803442,155.44,155.4,6.4349]
[1727756461525,38.2357,155.51,155.39,14.05991697]
[1727756461526,16.0772,155.5,155.41,1.286704]
[1727756461925,6.7352323,155.51,155.44,6.1912]
[1727756462112,13.1658323,155.51,155.45,16.64019243]
[1727756462420,6.4308,155.5,155.45,15.3538]
[1727756462627,1.60777692,155.52,155.45,15.3538]
[1727756462827,8.03817692,155.52,155.45,21.7867]
[1727756463007,8.03817692,155.52,155.45,15.3538]
[1727756463329,1.12063326,155.54,155.47,12.77277823]
[1727756463501,6.4288,155.55,155.49,6.4312]
[1727756463813,14.75569696,155.57,155.48,6.4315]
[1727756463814,8.03672434,155.54,155.48,6.4315]
[1727756464008,6.4292,155.54,155.48,6.4315]
[1727756464210,8.03612687,155.56,155.49,6.4311]
[1727756464416,8.03602565,155.56,155.5,6.4308]
[1727756464622,6.4286,155.56,155.5,6.4308]
[1727756465631,6.4286,155.56,155.48,42.98096223]
[1727756465814,1.60734539,155.55,155.49,6.4312]
[1727756466227,6.4286,155.56,155.49,6.4312]
[1727756468633,6.4286,155.56,155.51,15.3675]
[1727756469138,6.4286,155.56,155.52,1.28583137]
[1727756469628,6.4286,155.56,155.51,21.6843]
[1727756472316,9.14330698,155.59,155.51,21.6843]
[1727756472317,8.0360195,155.55,155.51,21.6843]
[1727756472636,6.4288,155.55,155.51,21.6843]
[1727756474915,8.03654359,155.54,155.51,21.6843]
[1727756475225,6.4292,155.54,155.51,21.6843]
[1727756477930,6.4296,155.53,155.51,21.6843]
[1727756478115,6.43,155.52,155.51,15.3675]
[1727756478318,6.43,155.52,155.47,6.3657]
[1727756478319,6.4308,155.51,155.47,22.3106]
[1727756478511,1.60770054,155.52,155.47,22.3106]
[1727756478713,6.4309,155.5,155.47,22.3106]
[1727756479414,6.4304,155.51,155.47,22.3106]
[1727756481630,22.8043817,155.56,155.48,1.28622165]
[1727756481828,6.7327817,155.56,155.48,12.77277823]
[1727756482032,1.60756633,155.55,155.48,12.77277823]
[1727756482328,23.9196699,155.59,155.49,30.13683456]
[1727756482633,23.9196699,155.59,155.5,12.77277823]
[1727756482834,23.9196699,155.59,155.51,1.28584015]
[1727756483332,6.4288,155.55,155.51,6.4304]
[1727756483534,6.4288,155.55,155.52,1.2858567]
[1727756483831,6.4288,155.55,155.52,1.28584482]
[1727756484018,6.4284,155.56,155.52,1.28584482]
[1727756484329,6.4284,155.56,155.51,6.4304]
[1727756484330,6.4284,155.56,155.54,15.6863]
[1727756484645,6.428,155.57,155.54,15.6863]
[1727756490644,2.43755183,155.61,155.54,15.6863]
[1727756490942,6.4288,155.55,155.54,15.6863]
[1727756491511,6.4288,155.55,155.5,16.1036]
[1727756496246,6.4288,155.55,155.5,22.5343]
[1727756498340,23.776884,155.58,155.5,16.1036]
[1727756498640,6.4301,155.52,155.5,16.1036]
[1727756499441,39.846684,155.58,155.5,16.1036]
[1727756499638,39.846684,155.58,155.51,1.28604809]
[1727756499842,6.4288,155.55,155.5,22.5344]
[1727756504432,6.4288,155.55,155.5,16.1036]
[1727756504638,6.4284,155.56,155.51,7.71611401]
[1727756505045,6.4284,155.56,155.51,6.4303]
[1727756512157,6.4296,155.53,155.5,16.1036]
[1727756512657,1.60715888,155.55,155.5,16.1036]
[1727756512847,6.4301,155.52,155.5,16.1036]
[1727756514035,6.4296,155.53,155.5,16.1036]
[1727756515752,6.4292,155.54,155.51,1.28600346]
[1727756516059,6.4292,155.54,155.5,16.1036]
[1727756517156,6.4289,155.55,155.51,1.28588364]
[1727756517549,47.69793868,155.59,155.51,7.71628364]
[1727756517782,6.4284,155.56,155.51,7.71628364]
[1727756518164,6.4284,155.56,155.51,6.4304]
[1727756525746,6.4281,155.57,155.52,1.28576747]
[1727756525961,6.4281,155.57,155.51,28.84807823]
[1727756526165,6.4275,155.59,155.53,6.4295]
[1727756526355,6.4275,155.59,155.53,12.6214]
[1727756526754,6.4277,155.58,155.53,12.6214]
[1727756527872,6.4284,155.56,155.53,6.1919]
[1727756528169,1.60716371,155.55,155.5,16.1036]
[1727756528378,6.4293,155.54,155.5,16.1036]
[1727756528552,1.6073737,155.57,155.5,16.1036]
[1727756528553,6.4297,155.53,155.5,16.1036]
[1727756529769,23.776884,155.56,155.5,16.1036]
[1727756529972,6.4304,155.51,155.5,16.1036]
[1727756530172,6.43,155.52,155.5,16.1036]
[1727756530754,1.60764398,155.55,155.5,16.1036]
[1727756530964,6.4309,155.5,155.46,15.0733]
[1727756535263,6.4296,155.53,155.48,6.4314]
[1727756535560,6.4296,155.53,155.49,1.28606685]
[1727756536076,6.4301,155.52,155.47,6.432]
[1727756536263,8.03846491,155.51,155.46,21.5057]
[1727756536581,6.4307,155.51,155.46,21.5057]
[1727756538466,6.4307,155.51,155.47,6.432]
[1727756538788,17.1924896,155.56,155.46,15.0733]
[1727756539082,6.4296,155.53,155.48,6.4314]
[1727756539259,1.60760985,155.52,155.48,6.4314]
[1727756539458,6.4296,155.53,155.48,6.4314]
[1727756540294,17.1924896,155.56,155.47,16.0796]
[1727756540295,8.03761216,155.52,155.47,16.0796]
[1727756540486,8.03832542,155.51,155.47,16.0796]
[1727756540687,6.4306,155.51,155.47,16.0796]
[1727756541380,6.4309,155.5,155.46,21.5057]
[1727756542478,6.4305,155.51,155.46,21.5057]
[1727756548491,1.607816,155.5,155.46,21.5057]
[1727756548697,6.4313,155.49,155.46,15.0733]
[1727756548986,1.60803461,155.48,155.42,15.8133]
[1727756549195,6.4326,155.46,155.42,15.8133]
[1727756552998,23.776884,155.51,155.42,15.8133]
[1727756553295,6.4321,155.47,155.42,22.2474]
[1727756553898,1.60828636,155.46,155.42,22.2474]
[1727756554094,1.6082824,155.46,155.42,22.2474]
[1727756554300,6.4321,155.47,155.42,22.2474]
[1727756555698,6.4321,155.47,155.42,23.53401831]
[1727756555906,6.4321,155.47,155.42,22.2474]
[1727756556680,6.4321,155.47,155.42,23.53402087]
[1727756557984,6.4321,155.47,155.42,22.2474]
[1727756558377,6.4321,155.47,155.42,23.53401859]
[1727756558990,24.8980189,155.51,155.42,17.09991859]
[1727756559201,6.4317,155.48,155.43,6.4337]
[1727756559595,6.4317,155.48,155.43,7.72024137]
[1727756560100,6.4317,155.48,155.43,6.4337]
[1727756560305,6.4317,155.48,155.43,7.72023487]
[1727756560803,6.4317,155.48,155.43,6.4337]
[1727756561579,6.4317,155.48,155.43,7.720253]
[1727756562825,8.04037959,155.47,155.43,6.4337]
[1727756563399,8.04037959,155.47,155.42,15.8133]
[1727756563608,6.4322,155.47,155.42,22.2473]
[1727756568303,6.4322,155.47,155.43,6.4336]
[1727756570199,6.4322,155.47,155.43,7.72015177]
[1727756573402,7.5516349,155.51,155.46,6.4324]
[1727756573710,6.4305,155.51,155.46,6.4324]
[1727756575987,6.4305,155.51,155.47,1.28623315]
[1727756576387,6.4305,155.51,155.47,7.71823315]
[1727756577391,6.4305,155.51,155.47,6.432]
[1727756577717,6.4305,155.51,155.48,1.28618616]
[1727756577884,6.4305,155.51,155.45,16.0817]
[1727756578088,6.4305,155.51,155.46,6.4324]
[1727756581413,6.10030188,155.54,155.48,6.4315]
[1727756581585,16.0722,155.55,155.48,6.4315]
[1727756581909,6.43,155.52,155.48,6.4315]
[1727756584005,6.4297,155.53,155.49,1.28611527]
[1727756584207,6.4297,155.53,155.49,7.71731527]
[1727756585014,6.4297,155.53,155.48,6.4316]
[1727756587109,8.7929,155.56,155.47,16.0797]
[1727756587302,6.4301,155.52,155.47,22.5117]
[1727756587518,6.4306,155.51,155.47,16.0797]
[1727756588104,6.4306,155.51,155.47,22.5117]
[1727756588414,8.0227634,155.55,155.47,22.5117]
[1727756588415,6.4301,155.52,155.47,22.5117]
[1727756588602,6.4299,155.53,155.48,7.71764063]
[1727756588791,6.73235347,155.57,155.48,29.29537823]
[1727756588994,6.73235347,155.57,155.53,6.4294]
[1727756589311,6.4271,155.6,155.54,7.71479667]
[1727756589687,8.03413312,155.59,155.54,6.4291]
[1727756589917,8.03444587,155.58,155.53,22.5027]
[1727756590111,6.4275,155.58,155.53,22.5027]
[1727756591998,6.428,155.57,155.53,16.0731]
[1727756592206,6.428,155.57,155.52,6.4299]
[1727756592602,6.4284,155.56,155.51,12.6751]
[1727756592804,0.8303797,155.61,155.52,12.77277823]
[1727756593405,1.60696949,155.6,155.53,15.0242]
[1727756594591,6.4284,155.56,155.53,15.0242]
[1727756600505,6.4288,155.55,155.53,15.0242]
[1727756603820,6.4285,155.56,155.53,15.0242]
[1727756609705,16.0675,155.6,155.53,15.0242]
[1727756610017,6.4281,155.57,155.53,15.0242]
[1727756611715,0.8303797,155.61,155.53,15.0242]
[1727756611716,6.4288,155.55,155.53,15.0242]
[1727756612332,6.4284,155.56,155.53,15.0242]
[1727756613112,6.73082173,155.6,155.54,1.28574546]
[1727756613330,16.8968797,155.61,155.53,15.0242]
[1727756613331,6.428,155.57,155.53,15.0242]
[1727756615017,6.4287,155.56,155.53,15.0242]
[1727756615715,6.4292,155.54,155.53,15.0242]
[1727756616837,6.4292,155.54,155.5,6.4308]
[1727756619933,6.4292,155.54,155.49,15.1315]
[1727756620111,6.4296,155.53,155.49,15.1315]
[1727756623133,39.845584,155.59,155.49,15.1315]
[1727756623340,6.4293,155.54,155.49,21.5626]
[1727756624041,23.776884,155.57,155.49,15.1315]
[1727756624219,1.6074733,155.56,155.49,15.1315]
[1727756624416,6.43,155.52,155.49,15.1315]
[1727756624938,6.4305,155.51,155.49,15.1315]
[1727756626642,39.847484,155.57,155.49,15.1315]
[1727756626939,6.43,155.52,155.49,15.1315]
[1727756628534,39.847484,155.57,155.45,31.4844]
[1727756628535,16.0728,155.55,155.45,31.4844]
[1727756628840,6.4313,155.49,155.45,31.4844]
[1727756629425,6.4309,155.5,155.46,1.28624672]
[1727756629727,6.4309,155.5,155.45,37.9172]
[1727756630747,6.4309,155.5,155.46,6.4324]
[1727756630946,6.4304,155.52,155.46,7.71864088]
[1727756631916,6.4305,155.51,155.46,6.4324]
[1727756632535,6.4305,155.51,155.47,1.28621001]
[1727756634237,6.4305,155.51,155.46,6.4324]
[1727756635042,6.4305,155.51,155.47,1.28620786]
[1727756635242,6.4305,155.51,155.46,6.4324]
[1727756635546,6.4305,155.51,155.47,1.28620783]
[1727756635930,6.4305,155.51,155.46,6.4324]
[1727756640350,6.4305,155.51,155.47,1.2861766]
[1727756640551,6.4305,155.51,155.46,6.4324]
[1727756644036,1.60776449,155.5,155.45,31.4844]
[1727756644242,6.4314,155.49,155.45,31.4844]
[1727756646130,6.4309,155.5,155.45,37.9172]
[1727756648956,23.776884,155.53,155.45,15.4025]
[1727756649139,6.4325,155.46,155.45,15.4025]
[1727756649658,6.4325,155.46,155.41,6.4345]
[1727756649659,6.4325,155.46,155.41,22.3575]
[1727756651253,6.4325,155.46,155.42,1.28653984]
[1727756651552,6.4322,155.47,155.42,7.72053984]
[1727756651853,6.4328,155.46,155.41,39.093]
[1727756654954,23.776884,155.5,155.41,32.6585]
[1727756655153,6.4331,155.45,155.41,32.6585]
[1727756657460,6.4331,155.45,155.41,16.5727]
[1727756658857,1.60831486,155.44,155.37,15.75]
[1727756659157,6.4349,155.41,155.37,15.75]
[1727756660265,6.4342,155.42,155.38,1.28693866]